bitfinex/quotes_ETHUSD_20250404
["timestamp","ask_amount","ask_price","bid_price","bid_amount"]
[1743796501462,5.52363,1810.5,1810.1,6.31322]
[1743796501672,5.454,1810.6,1810.1,10.49896491]
[1743796501673,0.10811921,1810.4,1810.1,10.49896491]
[1743796501872,5.52407,1810.3,1809.8,5.5253]
[1743796502048,5.52468,1810.1,1809.6,6.32119]
[1743796502251,5.52535,1809.9,1809.5,0.17264386]
[1743796502450,5.52608,1809.6,1809.5,0.17264386]
[1743796502650,0.10410054,1809.6,1809.5,0.17264386]
[1743796503043,5.63018054,1809.6,1809.5,0.17264386]
[1743796503471,5.52608,1809.6,1809.5,0.17264386]
[1743796503673,5.52583,1809.7,1809.3,5.52681]
[1743796503873,3.0,1809.7,1809.4,6.079211]
[1743796504176,5.52566,1809.8,1809.4,6.079211]
[1743796504177,5.52566,1809.8,1809.4,6.079311]
[1743796504352,10.97901,1810.0,1809.5,5.52611]
[1743796504353,3.0,1809.9,1809.5,5.52611]
[1743796504555,3.0,1809.9,1809.6,0.552611]
[1743796505066,8.52529,1809.9,1809.6,0.552611]
[1743796505266,8.52529,1809.9,1809.4,5.5265]
[1743796505879,8.52529,1809.9,1809.4,11.05304]
[1743796506074,8.52529,1809.9,1809.4,5.5265]
[1743796506277,8.52529,1809.9,1809.4,5.52645]
[1743796506477,5.454,1810.0,1809.1,4.18579491]
[1743796506775,5.454,1810.0,1809.6,5.52607]
[1743796507242,5.454,1810.0,1809.5,5.52637]
[1743796507243,5.52518,1809.9,1809.5,5.52637]
[1743796507588,5.454,1810.0,1809.7,5.52576]
[1743796507744,5.454,1810.0,1809.2,1.20997949]
[1743796507745,5.52518,1809.9,1809.5,5.52611]
[1743796508094,5.52518,1809.9,1809.5,6.63139]
[1743796508254,5.52518,1809.9,1809.5,5.52611]
[1743796508459,5.5259,1809.7,1809.3,5.52693]
[1743796508647,5.5259,1809.7,1809.3,5.52685]
[1743796508848,11.0512,1809.8,1809.4,5.52668]
[1743796509060,5.52549,1809.8,1809.4,5.52668]
[1743796509272,8.52548,1809.8,1809.4,6.631853]
[1743796509589,5.52622,1809.6,1809.2,6.73726949]
[1743796509758,5.526,1809.7,1809.3,5.52699]
[1743796509954,10.98211,1809.6,1809.2,6.73726949]
[1743796510154,10.98211,1809.6,1809.2,5.94586949]
[1743796510402,5.52683,1809.4,1809.1,1e-05]
[1743796510559,5.52683,1809.4,1809.1,5.5276]
[1743796510759,5.52615,1809.6,1809.2,5.52726]
[1743796510960,10.98215,1809.6,1809.2,6.632745]
[1743796511204,5.52688,1809.4,1809.1,1e-05]
[1743796511497,11.05304,1809.5,1809.1,1e-05]
[1743796511656,5.5267,1809.4,1809.1,1e-05]
[1743796511859,5.52651,1809.5,1809.1,1e-05]
[1743796512060,5.52651,1809.5,1809.1,5.5276]
[1743796512512,5.52651,1809.5,1809.2,5.52729]
[1743796512710,5.456,1809.6,1809.1,6.0802]
[1743796512865,10.98226,1809.6,1809.2,5.527]
[1743796513073,10.98226,1809.6,1809.2,5.5273]
[1743796513266,5.456,1809.6,1809.3,5.52688]
[1743796513471,5.456,1809.6,1809.2,6.687885]
[1743796513693,10.98222,1809.6,1809.3,5.52697]
[1743796513899,10.98222,1809.6,1809.2,6.687885]
[1743796514076,10.98222,1809.6,1809.2,11.05422]
[1743796514278,10.98211,1809.6,1809.2,11.05426]
[1743796514497,5.456,1809.6,1809.3,5.52684]
[1743796514702,5.456,1809.6,1809.3,11.05366]
[1743796515067,5.456,1809.6,1809.3,11.05368]
[1743796515263,3.0,1809.8,1809.4,5.52661]
[1743796515491,8.5256,1809.8,1809.4,5.52661]
[1743796515895,14.05128,1809.8,1809.4,5.52661]
[1743796516175,5.52588,1809.7,1809.4,5.52661]
[1743796516375,11.05186,1809.7,1809.3,5.52696]
[1743796516699,5.52588,1809.7,1809.3,5.52696]
[1743796516901,5.52588,1809.7,1809.3,12.159191]
[1743796517405,5.52588,1809.7,1809.4,5.52661]
[1743796517587,5.52588,1809.7,1809.3,6.632231]
[1743796517769,5.52588,1809.7,1809.3,5.52681]
[1743796518174,5.52639,1809.5,1809.2,5.52727]
[1743796518376,8.52556,1809.8,1809.1,5.52759]
[1743796518569,0.7615,1809.4,1809.1,1e-05]
[1743796518875,5.458,1809.3,1809.1,5.52758]
[1743796519116,5.458,1809.3,1809.1,11.05515]
[1743796519327,5.458,1809.3,1809.2,5.5273]
[1743796520109,3.0,1809.5,1809.2,5.5273]
[1743796520436,11.05236,1809.6,1809.2,5.52712]
[1743796520437,5.5261,1809.6,1809.2,5.52712]
[1743796520834,11.79772,1809.7,1809.3,5.52684]
[1743796520975,5.52618,1809.6,1809.3,5.52684]
[1743796521479,17.32367,1809.7,1809.3,5.52683]
[1743796521903,5.52611,1809.6,1809.3,5.52683]
[1743796522112,5.52611,1809.6,1809.2,5.52713]
[1743796522310,5.52611,1809.6,1809.3,5.52698]
[1743796522582,5.52611,1809.6,1809.2,6.079844]
[1743796522782,5.52611,1809.6,1809.3,5.52698]
[1743796522978,5.52611,1809.6,1809.2,6.079844]
[1743796523198,5.52611,1809.6,1809.2,11.607044]
[1743796523379,11.79771,1809.7,1809.3,5.52699]
[1743796523693,6.2719,1809.7,1809.4,11.05297]
[1743796523905,8.458,1809.8,1809.5,5.52628]
[1743796524130,0.8213,1809.9,1809.4,5.5266]
[1743796524291,5.458,1809.9,1809.6,5.52587]
[1743796524622,5.458,1809.9,1809.7,5.52567]
[1743796525126,5.458,1809.9,1809.6,5.52602]
[1743796525331,5.458,1809.9,1809.6,5.52596]
[1743796525479,5.458,1809.9,1809.6,5.52591]
[1743796525827,5.458,1809.9,1809.8,5.52547]
[1743796525978,5.458,1809.9,1809.7,11.05121]
[1743796526323,5.458,1809.9,1809.8,5.52547]
[1743796526524,0.8213,1810.1,1809.6,6.133907]
[1743796526828,11.80989,1810.3,1810.0,5.52476]
[1743796527119,11.80989,1810.3,1809.9,5.52496]
[1743796527272,6.2859,1810.3,1809.9,0.552496]
[1743796527478,5.52498,1810.0,1809.6,5.52596]
[1743796527673,5.52498,1810.0,1809.6,11.05189]
[1743796527889,5.458,1809.9,1809.6,11.05189]
[1743796528091,5.458,1809.9,1809.6,12.26587587]
[1743796528330,5.458,1809.9,1809.6,1.21395587]
[1743796528530,5.458,1809.9,1809.7,5.52576]
[1743796528831,5.458,1809.9,1809.6,5.52597]
[1743796529046,5.458,1809.9,1809.6,11.05193]
[1743796529250,5.458,1809.9,1809.7,5.52576]
[1743796529391,5.458,1809.9,1809.6,11.22457338]
[1743796529728,5.458,1809.9,1809.7,5.52576]
[1743796530135,5.458,1809.9,1809.6,12.42392072]
[1743796530289,8.458,1809.9,1809.8,0.17264338]
[1743796530494,13.98316,1809.9,1809.8,0.17264338]
[1743796530989,14.78056,1809.9,1809.8,0.17264338]
[1743796531339,5.52596,1809.7,1809.5,0.17264338]
[1743796532703,5.52596,1809.7,1809.6,0.17264338]
[1743796533029,11.05117,1809.8,1809.6,0.17264338]
[1743796533199,5.52552,1809.8,1809.6,0.17264338]
[1743796533600,11.05123,1809.8,1809.6,0.17264338]
[1743796533805,11.05123,1809.8,1809.4,5.52655]
[1743796534011,5.5258,1809.7,1809.4,5.52655]
[1743796534205,5.52552,1809.8,1809.5,5.52632]
[1743796534399,0.7974,1809.9,1809.6,5.52598]
[1743796534825,0.7974,1809.9,1809.6,5.52603]
[1743796535029,8.52459,1810.1,1809.7,5.69829661]
[1743796535332,9.33469,1810.1,1809.8,5.52536]
[1743796535514,11.0499,1810.0,1809.7,5.69834661]
[1743796535725,10.98332,1809.9,1809.7,0.17264661]
[1743796535900,5.458,1809.9,1809.7,0.17264661]
[1743796536260,5.458,1809.9,1809.8,0.17264661]
[1743796536422,10.98316,1809.9,1809.8,0.17264661]
[1743796536736,14.77066,1809.9,1809.8,0.17264661]
[1743796536899,8.52547,1809.8,1809.7,0.17264661]
[1743796537915,5.52604,1809.7,1809.4,5.69923661]
[1743796538326,8.52554,1809.8,1809.5,5.52636]
[1743796538715,11.77073,1809.9,1809.6,5.52595]
[1743796538912,6.2455,1809.9,1809.7,5.52577]
[1743796539132,5.458,1809.9,1809.7,5.69831661]
[1743796539434,5.458,1809.9,1809.7,0.17264661]
[1743796539735,5.458,1809.9,1809.7,5.69827661]
[1743796539939,5.458,1809.9,1809.7,0.17264661]
[1743796540451,5.458,1809.9,1809.8,5.69811661]
[1743796540900,5.458,1809.9,1809.8,6.82048327]
[1743796541411,0.7519,1810.5,1809.9,6.29493]
[1743796541629,5.457,1810.6,1810.3,5.52374]
[1743796541832,5.457,1810.6,1810.1,5.52453]
[1743796542016,5.457,1810.6,1810.5,5.52333]
[1743796542222,6.31496,1811.0,1810.6,5.52272]
[1743796542537,5.52252,1810.8,1810.5,5.69593661]
[1743796542728,13.97922,1810.9,1810.5,11.21908661]
[1743796543125,13.97922,1810.9,1810.5,0.17264661]
[1743796543126,5.52242,1810.8,1810.5,0.17264661]
[1743796543507,13.97915,1810.9,1810.5,5.69582661]
[1743796543707,8.457,1810.9,1810.6,5.69556661]
[1743796543907,13.97911,1810.9,1810.6,0.17264661]
[1743796544104,19.50147,1810.9,1810.6,0.17264661]
[1743796544304,8.457,1810.9,1810.6,0.17264661]
[1743796544513,13.97913,1810.9,1810.6,5.69555661]
[1743796544720,5.52272,1810.7,1810.6,0.17264661]
[1743796544920,13.97913,1810.9,1810.4,0.17264661]
[1743796545116,13.97913,1810.9,1810.5,5.52319]
[1743796545337,5.52258,1810.8,1810.4,5.69619661]
[1743796545537,11.04526,1810.8,1810.4,6.34172627]
[1743796545743,5.52283,1810.7,1810.4,5.69618661]
[1743796545913,5.52258,1810.8,1810.4,5.69616661]
[1743796546108,19.50142,1810.9,1810.5,5.52319]
[1743796546347,19.50142,1810.9,1810.4,5.69616661]
[1743796546348,8.457,1810.9,1810.4,5.69616661]
[1743796546648,19.50149,1810.9,1810.5,5.52312]
[1743796546849,11.04523,1810.8,1810.5,0.17264661]
[1743796547047,5.52257,1810.8,1810.5,0.17264661]
[1743796547218,13.97915,1810.9,1810.5,5.69578661]
[1743796547630,6.31485,1811.0,1810.6,5.52288]
[1743796547959,30.38037,1811.2,1810.6,5.52288]
[1743796547960,11.74425,1811.2,1810.8,5.52228]
[1743796548247,8.52152,1811.1,1810.7,6.28726]
[1743796548451,8.52152,1811.1,1810.7,6.28724]
[1743796548656,5.52152,1811.1,1810.8,5.52229]
[1743796548837,5.52152,1811.1,1810.7,6.28724]
[1743796548838,11.04327,1811.1,1810.7,6.28724]
[1743796549150,8.52161,1811.1,1810.6,5.52285]
[1743796549355,3.0,1811.1,1810.6,5.52299]
[1743796549651,8.52154,1811.1,1810.6,5.523]
[1743796549854,11.04392,1811.0,1810.6,5.523]
[1743796550053,5.52182,1811.0,1810.6,5.523]
[1743796550222,5.52182,1811.0,1810.6,1.104631]
[1743796550549,5.52225,1810.9,1810.5,5.69576816]
[1743796550751,5.52242,1810.8,1810.5,0.17254816]
[1743796550923,11.04463,1810.9,1810.5,5.69567816]
[1743796551123,5.52225,1810.9,1810.5,11.21888816]
[1743796551323,5.455,1810.8,1810.6,5.52298]
[1743796551551,5.455,1810.8,1810.7,5.52272]
[1743796551918,8.455,1811.1,1810.7,5.52272]
[1743796552153,5.52222,1810.9,1810.5,5.52323]
[1743796552453,5.52257,1810.8,1810.4,6.28832]
[1743796552657,5.455,1810.7,1810.4,6.28832]
[1743796552824,10.97773,1810.7,1810.4,6.28832]
[1743796553018,10.97773,1810.7,1810.3,5.69648816]
[1743796553219,5.52345,1810.5,1810.3,0.17254816]
[1743796553442,6.30165,1810.5,1810.3,0.17254816]
[1743796553643,11.79624,1810.7,1810.4,5.52352]
[1743796553849,5.455,1810.7,1810.4,11.86264]
[1743796554056,5.455,1810.7,1810.5,5.52316]
[1743796554254,5.455,1810.7,1810.4,6.3392]
[1743796554441,10.97795,1810.7,1810.3,5.52383]
[1743796554642,5.52354,1810.5,1810.1,5.69705816]
[1743796554843,8.52307,1810.6,1810.2,5.52409]
[1743796555030,3.0,1810.6,1810.3,5.52391]
[1743796555361,3.0,1810.6,1810.3,12.152428]
[1743796555548,3.0,1810.6,1810.3,6.628588]
[1743796555859,3.0,1810.6,1810.1,5.52454]
[1743796556059,5.52374,1810.4,1810.0,6.27724]
[1743796556250,6.34949,1810.5,1810.1,5.52436]
[1743796556782,6.34949,1810.5,1810.0,11.80204]
[1743796556783,11.04748,1810.4,1810.0,11.80204]
[1743796556925,5.52367,1810.4,1810.0,11.80204]
[1743796557125,5.52367,1810.4,1810.0,11.80191]
[1743796557431,5.5239,1810.4,1810.0,0.7524]
[1743796557628,6.34944,1810.5,1810.1,11.04882]
[1743796557849,11.87296,1810.5,1810.2,5.52422]
[1743796558056,11.87296,1810.5,1810.1,11.04884]
[1743796558257,11.87295,1810.5,1810.1,12.228964]
[1743796558558,5.52376,1810.4,1810.0,6.27721]
[1743796558734,10.97895,1810.3,1809.9,5.52501]
[1743796559142,5.52427,1810.2,1809.9,5.52501]
[1743796559768,5.52457,1810.1,1809.8,6.30145]
[1743796559980,0.8025,1810.1,1809.8,5.52527]
[1743796560473,11.85203,1810.1,1809.7,5.52573]
[1743796560687,5.52557,1809.8,1809.5,5.52637]
[1743796560827,10.98057,1809.8,1809.5,5.52637]
[1743796561031,5.455,1809.8,1809.6,5.52582]
[1743796561280,5.455,1809.8,1809.7,5.52577]
[1743796561628,6.2575,1810.1,1809.8,5.5253]
[1743796562304,11.78206,1810.1,1809.7,5.52577]
[1743796562594,5.5249,1810.0,1809.6,11.05188]
[1743796562762,5.5249,1810.0,1809.7,1.105188]
[1743796562946,11.7821,1810.1,1809.8,5.52545]
[1743796563142,6.2575,1810.1,1809.8,11.0506]
[1743796563380,5.455,1810.1,1809.8,5.5253]
[1743796563573,5.455,1810.1,1809.8,11.0506]
[1743796563781,5.455,1810.1,1809.8,6.8221788]
[1743796563980,5.455,1810.1,1809.9,5.52514]
[1743796564180,0.8126,1810.5,1810.2,5.52425]
[1743796564487,11.79103,1810.5,1810.2,5.52418]
[1743796564781,5.52365,1810.4,1810.1,5.5245]
[1743796564980,5.52365,1810.4,1810.1,6.70742]
[1743796565157,5.52387,1810.4,1810.0,5.5247]
[1743796565360,11.79097,1810.5,1810.1,5.52454]
[1743796565677,11.79097,1810.5,1810.1,5.52442]
[1743796565883,17.31449,1810.5,1810.1,5.52442]
[1743796566065,17.31449,1810.5,1810.1,6.629343]
[1743796566269,5.52365,1810.4,1810.0,5.52481]
[1743796566472,11.04759,1810.4,1810.0,5.52481]
[1743796566783,5.52396,1810.3,1810.0,5.52481]
[1743796566971,5.52365,1810.4,1810.0,11.04951]
[1743796567167,5.52365,1810.4,1810.1,5.52449]
[1743796567367,5.52365,1810.4,1810.1,11.04891]
[1743796567571,6.2676,1810.5,1810.2,5.52412]
[1743796567758,8.455,1810.6,1810.4,5.52364]
[1743796568388,5.52344,1810.5,1810.2,6.30137]
[1743796568553,5.52344,1810.5,1810.1,11.04874]
[1743796568858,5.52344,1810.5,1810.1,11.04877]
[1743796569063,13.97804,1810.6,1810.2,5.52411]
[1743796569248,13.97804,1810.6,1810.3,5.52389]
[1743796569449,5.52335,1810.5,1810.2,5.52411]
[1743796569684,5.52364,1810.4,1810.2,0.17259192]
[1743796569855,5.52336,1810.5,1810.2,5.69672192]
[1743796570058,13.97813,1810.6,1810.2,6.26639411]
[1743796570284,5.52334,1810.5,1810.2,0.17259192]
[1743796570655,5.52334,1810.5,1810.1,5.5244]
[1743796570886,0.7849,1810.7,1810.3,0.805]
[1743796571054,11.78826,1810.9,1810.5,11.04648]
[1743796571255,5.52259,1810.8,1810.4,5.52359]
[1743796571482,5.52312,1810.6,1810.3,6.32877]
[1743796571682,5.52312,1810.6,1810.2,11.04838]
[1743796571953,5.455,1810.5,1810.3,5.69633192]
[1743796572484,5.455,1810.5,1810.4,5.52364]
[1743796572999,5.455,1810.5,1810.4,5.69623192]
[1743796573350,3.811,1810.9,1810.5,0.7875]
[1743796573351,0.811,1810.9,1810.5,0.7875]
[1743796573548,10.97685,1811.0,1810.6,5.52281]
[1743796573859,10.9769,1811.0,1810.7,5.52271]
[1743796574585,5.455,1811.0,1810.7,11.04529]
[1743796574888,5.455,1811.0,1810.8,0.17259192]
[1743796575581,9.34275,1811.1,1810.8,5.69476192]
[1743796575582,5.455,1811.1,1810.8,5.69476192]
[1743796575881,10.97664,1811.1,1810.8,5.52217]
[1743796576286,5.52131,1811.2,1810.8,5.52217]
[1743796576491,16.49773,1811.2,1810.8,5.52232]
[1743796576779,5.5216,1811.1,1810.8,5.52232]
[1743796577288,5.52242,1810.8,1810.7,0.17254001]
[1743796577588,10.97642,1810.8,1810.7,0.17254001]
[1743796578391,11.04565,1810.7,1810.4,5.69602001]
[1743796578889,5.52273,1810.7,1810.4,5.69602001]
[1743796579090,5.52273,1810.7,1810.4,6.81801001]
[1743796579260,5.52273,1810.7,1810.4,5.69602001]
[1743796579456,11.04564,1810.7,1810.4,0.17254001]
[1743796579652,6.27883,1810.6,1810.4,0.17254001]
[1743796580279,5.52333,1810.5,1810.4,0.17254001]
[1743796580858,5.52365,1810.4,1810.2,0.17254001]
[1743796581059,16.50147,1810.4,1810.2,0.17254001]
[1743796581262,5.52394,1810.3,1810.2,0.17254001]
[1743796581462,6.29494,1810.3,1810.2,0.17254001]
[1743796582383,9.29494,1810.3,1810.2,0.17254001]
[1743796582585,5.52472,1810.1,1809.9,0.17254001]
[1743796582992,5.454,1810.0,1809.9,0.17254001]
[1743796583495,5.454,1810.0,1809.8,5.69800001]
[1743796583691,5.454,1810.0,1809.8,0.17254001]
[1743796584299,10.97887,1810.0,1809.8,0.17254001]
[1743796584475,6.27576,1809.9,1809.8,0.17254001]
[1743796585603,6.27576,1809.9,1809.6,5.69858001]
[1743796586006,6.27576,1809.9,1809.6,0.17254001]
[1743796586383,11.80111,1809.9,1809.6,0.17254001]
[1743796586582,11.80111,1809.9,1809.5,6.47337001]
[1743796587079,6.27576,1809.9,1809.5,11.99959001]
[1743796587298,6.27576,1809.9,1809.6,5.52607]
[1743796587700,6.27576,1809.9,1809.6,5.69861001]
[1743796588906,5.455,1810.1,1809.8,5.5253]
[1743796589402,9.27727,1810.3,1809.8,0.17254001]
[1743796589609,0.7887,1810.5,1809.9,6.33647229]
[1743796589776,0.7887,1810.5,1810.2,5.5241]
[1743796589977,3.0,1810.6,1810.3,5.52384]
[1743796590178,0.7887,1810.7,1810.3,0.7561]
[1743796590525,5.52278,1810.7,1810.3,6.45248001]
[1743796590807,5.52335,1810.5,1810.3,0.17254001]
[1743796591307,5.52364,1810.4,1810.3,0.17254001]
[1743796591521,8.52364,1810.4,1810.3,0.17254001]
[1743796591825,8.52364,1810.4,1809.9,5.52487]
[1743796591826,5.52418,1810.3,1809.9,11.22248001]
[1743796592144,5.52418,1810.3,1810.0,5.52478]
[1743796592427,9.29836,1810.4,1810.0,11.04945]
[1743796592625,3.0,1810.4,1810.1,5.5245]
[1743796592833,10.97839,1810.5,1810.2,5.52419]
[1743796593130,5.455,1810.5,1810.2,11.04832]
[1743796593317,10.97835,1810.5,1810.2,5.52413]
[1743796593824,16.50187,1810.5,1810.1,12.00086001]
[1743796594029,10.97835,1810.5,1810.2,0.17254001]
[1743796594225,16.50186,1810.5,1810.2,0.17254001]
[1743796594431,10.97835,1810.5,1810.2,5.69670001]
[1743796594797,16.50188,1810.5,1810.2,0.17254001]
[1743796594994,5.52367,1810.4,1810.1,6.47625001]
[1743796595199,10.97835,1810.5,1810.1,12.00065001]
[1743796595560,10.97835,1810.5,1810.1,5.69694001]
[1743796595701,5.52376,1810.4,1810.1,5.5244]
[1743796596032,10.97836,1810.5,1810.1,5.5244]
[1743796596215,10.97836,1810.5,1810.2,5.52423]
[1743796596418,5.52364,1810.4,1810.1,5.5244]
[1743796596599,10.97836,1810.5,1810.1,5.5244]
[1743796596807,10.97836,1810.5,1810.2,5.52423]
[1743796597024,16.50197,1810.5,1810.1,5.5244]
[1743796597218,10.97836,1810.5,1810.2,5.52422]
[1743796597434,10.97836,1810.5,1810.1,5.5244]
[1743796597738,3.0,1810.4,1810.0,0.17260503]
[1743796597898,11.04891,1810.2,1809.9,0.92630503]
[1743796598103,5.52485,1810.1,1809.9,0.17260503]
[1743796598323,5.52474,1810.1,1809.9,0.17260503]
[1743796598522,11.04948,1810.1,1809.7,11.05125]
[1743796598702,5.52474,1810.1,1809.7,11.05125]
[1743796599101,11.04953,1810.1,1809.7,5.52562]
[1743796599310,16.50453,1810.1,1809.7,5.6982606]
[1743796599526,10.97974,1810.1,1809.7,5.6982606]
[1743796599708,16.50446,1810.1,1809.7,11.2238906]
[1743796600036,10.97972,1810.1,1809.7,11.2238906]
[1743796600333,5.455,1810.1,1809.9,5.52507]
[1743796600794,10.97958,1810.1,1809.7,12.25561906]
[1743796600999,16.50432,1810.1,1809.7,6.72989906]
[1743796601195,5.52497,1810.0,1809.6,5.52593]
[1743796601434,0.7539,1809.9,1809.7,5.52577]
[1743796601598,11.7335,1810.1,1809.8,5.52545]
[1743796602632,6.2089,1810.1,1809.9,5.52499]
[1743796602802,5.455,1810.1,1809.9,11.05004]
[1743796603003,11.79979,1810.3,1809.9,6.630144]
[1743796603196,11.79979,1810.3,1809.9,5.52514]
[1743796603836,0.7517,1810.3,1809.8,0.05525044]
[1743796603996,0.7517,1810.3,1810.0,5.52456]
[1743796604203,5.52383,1810.4,1810.1,5.52452]
[1743796604501,5.52397,1810.3,1810.0,5.52486]
[1743796604822,5.52379,1810.4,1810.0,12.24793167]
[1743796605129,3.0,1810.4,1810.0,1.19832167]
[1743796605332,11.04829,1810.3,1809.9,0.7606]
[1743796605503,5.5241,1810.3,1809.9,0.7606]
[1743796606221,11.04825,1810.3,1809.9,0.7606]
[1743796606732,5.52428,1810.2,1809.9,0.7606]
[1743796607231,11.04869,1810.2,1810.0,0.17262041]
[1743796607442,5.52428,1810.2,1810.0,0.17262041]
[1743796607616,11.0487,1810.2,1810.0,0.17262041]
[1743796607815,5.52428,1810.2,1810.0,0.17262041]
[1743796608043,11.04871,1810.2,1810.0,0.17262041]
[1743796608202,11.04868,1810.2,1809.7,0.7915]
[1743796608495,5.52464,1810.1,1809.7,0.7915]
[1743796609037,5.52428,1810.2,1809.8,0.17262369]
[1743796609353,5.52458,1810.1,1809.8,0.17262369]
[1743796610137,5.52399,1810.3,1810.0,0.7608]
[1743796610303,5.52425,1810.2,1810.0,0.7608]
[1743796610842,5.52401,1810.3,1810.0,0.7608]
[1743796611042,11.04813,1810.3,1810.0,0.7608]
[1743796611246,5.52436,1810.2,1810.0,0.7608]
[1743796611416,11.04935,1810.1,1809.7,0.8073]
[1743796611742,11.04933,1810.1,1809.7,0.8073]
[1743796611937,5.52455,1810.1,1809.7,0.8073]
[1743796612138,8.52364,1810.4,1809.7,0.8073]
[1743796612139,11.04878,1810.2,1809.7,0.8073]
[1743796612355,3.0,1810.4,1809.7,1.440632]
[1743796612356,5.52479,1810.1,1809.7,1.440632]
[1743796612523,5.52495,1810.0,1809.7,0.8073]
[1743796613044,5.52495,1810.0,1809.8,0.17262908]
[1743796614140,5.5246,1810.1,1809.9,0.17262908]
[1743796615018,11.04934,1810.1,1810.0,0.17262908]
[1743796616342,11.05014,1810.0,1809.8,0.17262908]
[1743796616540,5.52516,1809.9,1809.8,0.17262908]
[1743796618264,5.52428,1810.2,1809.8,0.97362908]
[1743796618487,11.04959,1810.1,1809.8,2.01041872]
[1743796618687,5.52499,1810.0,1809.9,0.17262908]
[1743796621591,8.52499,1810.0,1809.9,0.17262908]
[1743796622097,9.28829,1810.0,1809.9,0.17262908]
[1743796622247,5.52608,1809.6,1809.5,0.17262908]
[1743796623204,5.52666,1809.5,1809.3,0.17262908]
[1743796623499,5.52669,1809.4,1809.3,0.17262908]
[1743796625056,5.52669,1809.4,1809.2,0.17262908]
[1743796625057,5.52699,1809.3,1809.2,0.17262908]
[1743796627096,5.5273,1809.2,1809.1,1e-05]
[1743796631606,5.52699,1809.3,1809.1,0.81671]
[1743796631806,11.05317,1809.5,1809.1,6.34425]
[1743796632103,5.455,1809.7,1809.1,2.003911]
[1743796632104,5.5267,1809.4,1809.1,2.003911]
[1743796632780,5.5267,1809.4,1809.1,7.531471]
[1743796633101,5.5267,1809.4,1809.1,2.003911]
[1743796633304,5.5267,1809.4,1809.1,2.17654008]
[1743796633468,11.05357,1809.4,1809.1,2.17654008]
[1743796633800,5.5267,1809.4,1809.1,2.17654008]
[1743796634167,5.5267,1809.4,1809.1,7.70411008]
[1743796634806,11.05298,1809.5,1809.1,7.70403008]
[1743796634968,5.52681,1809.4,1809.1,2.17654008]
[1743796635169,5.52681,1809.4,1809.1,7.70408008]
[1743796635370,5.52643,1809.5,1809.2,0.77040801]
[1743796635873,5.52643,1809.5,1809.2,0.94303709]
[1743796636073,5.52643,1809.5,1809.2,6.47020709]
[1743796636591,5.52643,1809.5,1809.2,6.46924709]
[1743796636927,5.52671,1809.4,1809.2,0.94207709]
[1743796637115,5.52643,1809.5,1809.2,6.46925709]
[1743796637268,5.52643,1809.5,1809.2,0.94207709]
[1743796637797,5.52643,1809.5,1809.2,6.46932709]
[1743796638116,5.52643,1809.5,1809.2,0.94207709]
[1743796638345,5.52699,1809.3,1809.2,0.17262908]
[1743796638838,5.52699,1809.3,1809.1,0.98933908]
[1743796639337,11.05415,1809.3,1809.1,0.98933908]
[1743796639929,5.52699,1809.3,1809.1,0.98933908]
[1743796640351,11.05359,1809.4,1809.1,0.81671]
[1743796640645,5.527,1809.3,1809.1,0.81671]
[1743796640843,5.52646,1809.5,1809.1,6.3441]
[1743796641144,5.52678,1809.4,1809.1,6.3441]
[1743796641345,5.52678,1809.4,1809.1,6.51672908]
[1743796641495,11.05364,1809.4,1809.1,6.51672908]
[1743796641838,11.05363,1809.4,1809.1,6.51672908]
[1743796642140,5.52704,1809.3,1809.1,0.98933908]
[1743796642297,11.05366,1809.4,1809.1,0.98933908]
[1743796642499,5.52704,1809.3,1809.1,0.98933908]
[1743796642829,5.52672,1809.4,1809.1,6.51678908]
[1743796643414,11.05359,1809.4,1809.1,6.51678908]
[1743796643614,11.05359,1809.4,1809.2,0.17262908]
[1743796644005,5.52672,1809.4,1809.2,0.17262908]
[1743796644209,11.05357,1809.4,1809.2,0.17262908]
[1743796644403,5.52672,1809.4,1809.2,0.17262908]
[1743796644604,5.52699,1809.3,1809.2,0.17262908]
[1743796645942,11.05355,1809.4,1809.2,0.17262908]
[1743796646103,5.52699,1809.3,1809.2,0.17262908]
[1743796647444,5.52672,1809.4,1809.2,0.17262908]
[1743796647641,5.52699,1809.3,1809.2,0.17262908]
[1743796648020,11.05369,1809.4,1809.2,0.17262908]
[1743796648408,5.52672,1809.4,1809.2,0.17262908]
[1743796648751,11.05238,1809.6,1809.3,5.52698]
[1743796649047,11.05242,1809.6,1809.3,5.52698]
[1743796649247,11.05242,1809.6,1809.4,0.17262908]
[1743796649446,5.52638,1809.5,1809.4,0.17262908]
[1743796650956,8.52638,1809.5,1809.4,0.17262908]
[1743796651346,9.32078,1809.5,1809.2,0.17262908]
[1743796651656,8.52699,1809.3,1809.2,0.17262908]
[1743796652727,5.5273,1809.2,1809.1,1e-05]
[1743796653268,8.52699,1809.3,1809.1,1e-05]
[1743796653467,5.5273,1809.2,1809.1,1e-05]
[1743796654496,5.5273,1809.2,1809.1,0.17273245]
[1743796654857,3.0,1809.3,1809.1,0.17273245]
[1743796655070,6.3209,1809.5,1809.1,10.13876098]
[1743796655273,5.52612,1809.6,1809.2,0.7679]
[1743796655572,5.52612,1809.6,1809.3,11.22645245]
[1743796655799,5.52612,1809.6,1809.3,5.69956245]
[1743796656002,5.52612,1809.6,1809.3,0.17272245]
[1743796656203,11.05302,1809.5,1809.3,0.17272245]
[1743796656406,11.05302,1809.5,1809.4,0.17272245]
[1743796656974,5.52639,1809.5,1809.4,0.17272245]
[1743796660676,11.0523,1809.6,1809.4,0.17272245]
[1743796661179,3.0,1809.6,1809.4,5.69932245]